lending/lending_fUSD_20240721
["ID","MTS","AMOUNT","RATE_DAILY","PERIOD"]
[332833364,1721562324960,-2919.56,0.00043835,60]
[332833365,1721562324992,-564.14,0.00043835,60]
[332833366,1721562325026,-706.48,0.00043835,60]
[332833367,1721562325058,-1123.39,0.00043835,60]
[332833368,1721562325091,-564.14,0.00043835,60]
[332833369,1721562325123,-1210.27,0.00043835,60]
[332833370,1721562325154,-564.14,0.00043835,60]
[332833371,1721562325185,-564.14,0.00043835,60]
[332833372,1721562325217,-564.14,0.00043835,60]
[332833373,1721562325249,-564.14,0.00043835,60]
[332833374,1721562325283,-1481.73,0.00043835,60]
[332833375,1721562325315,-564.14,0.00043835,60]
[332833376,1721562325347,-564.14,0.00043835,60]
[332833377,1721562325378,-500.0,0.00043835,60]
[332833378,1721562325409,-564.14,0.00043835,60]
[332833379,1721562325443,-500.0,0.00043835,60]
[332833380,1721562325474,-591.17,0.00043835,60]
[332833381,1721562325507,-564.14,0.00043835,60]
[332833382,1721562325540,-564.28383802,0.00043835,60]
[332833383,1721562325571,-500.0,0.00043835,60]
[332833384,1721562325604,-502.04150679,0.00043835,60]
[332833385,1721562325637,-500.0,0.00043835,60]
[332833386,1721562325672,-1432.29,0.00043835,60]
[332833387,1721562325704,-1056.88,0.00043835,60]
[332833388,1721562325743,-1330.89,0.00043835,60]
[332833389,1721562325777,-501.39378543,0.00043835,60]
[332833390,1721562325808,-500.0,0.00043835,60]
[332833391,1721562325844,-500.0,0.00043835,60]
[332833392,1721562325881,-500.0,0.00043835,60]
[332833393,1721562325913,-500.0,0.00043835,60]
[332833394,1721562325948,-988.83,0.00043835,60]
[332833395,1721562325983,-1360.2,0.00043835,60]
[332833396,1721562326017,-1961.99,0.00043835,60]
[332833397,1721562326051,-500.0,0.00043835,60]
[332833398,1721562326087,-1175.39,0.00043835,60]
[332833399,1721562326119,-500.0,0.00043835,60]
[332833400,1721562326150,-500.0,0.00043835,60]
[332833401,1721562326184,-1775.63,0.00043835,60]
[332833402,1721562326217,-500.0,0.00043835,60]
[332833403,1721562326250,-500.0,0.00043835,60]
[332833404,1721562326283,-500.0,0.00043835,60]
[332833405,1721562326315,-502.89370452,0.00043835,60]
[332833406,1721562326347,-2804.4,0.00043835,60]
[332833407,1721562326380,-1087.26,0.00043835,60]
[332833408,1721562326412,-1440.0,0.00043835,60]
[332833409,1721562326444,-500.0,0.00043835,60]
[332833410,1721562326475,-1667.31,0.00043835,60]
[332833411,1721562326509,-626.11,0.00043835,60]
[332833412,1721562326543,-14542.08,0.00043835,60]
[332833413,1721562326576,-500.0,0.00043835,60]
[332833414,1721562326608,-393.73181973,0.00043835,60]
[332833415,1721562326642,-1168.18,0.00043835,60]
[332833416,1721562326674,-1384.47,0.00043835,60]
[332833417,1721562326706,-1041.33,0.00043835,60]
[332833418,1721562326738,-500.0,0.00043835,60]
[332833419,1721562326770,-500.0,0.00043835,60]
[332833420,1721562326803,-1364.5,0.00043835,60]
[332833421,1721562326836,-500.0,0.00043835,60]
[332833422,1721562326871,-10582.84,0.00043835,60]
[332833423,1721562326903,-500.0,0.00043835,60]
[332833424,1721562326937,-500.0,0.00043835,60]
[332833425,1721562326974,-3018.98,0.00043835,60]
[332833426,1721562327011,-502.21103382,0.00043835,60]
[332833427,1721562327047,-2156.98,0.00043835,60]
[332833428,1721562327080,-2000.0,0.00043835,30]
[332833429,1721562327116,-500.0,0.00043835,60]
[332833430,1721562327149,-1043.6,0.00043835,60]
[332833431,1721562327182,-500.0,0.00043835,60]
[332833432,1721562327216,-2651.26,0.00043835,60]
[332833433,1721562327248,-562.21,0.00043835,60]
[332833434,1721562327280,-500.0,0.00043835,60]
[332833435,1721562327311,-500.0,0.00043835,60]
[332833436,1721562327342,-1662.91,0.00043835,60]
[332833437,1721562327375,-500.0,0.00043835,60]
[332833438,1721562327408,-500.0,0.00043835,60]
[332833439,1721562327440,-828.34,0.00043835,60]
[332833440,1721562327471,-500.0,0.00043835,60]
[332833441,1721562327504,-477.02998919,0.00043835,60]
[332833442,1721562327536,-500.0,0.00043835,60]
[332833443,1721562327568,-768.8,0.00043835,60]
[332833444,1721562327598,-500.0,0.00043835,60]
[332833445,1721562327630,-500.0,0.00043835,60]
[332833446,1721562327661,-3806.9,0.00043835,60]
[332833447,1721562327692,-543.40779533,0.00043835,60]
[332833448,1721562327924,-2864.26,0.00043835,60]
[332833449,1721562327958,-699.02,0.00043835,60]
[332833450,1721562327991,-500.0,0.00043835,60]
[332833451,1721562328027,-2848.82,0.00043835,60]
[332833452,1721562328060,-500.0,0.00043835,60]
[332833453,1721562328092,-694.74,0.00043835,60]
[332833454,1721562328126,-500.0,0.00043835,60]
[332833455,1721562328158,-500.0,0.00043835,60]
[332833456,1721562328192,-500.0,0.00043835,60]
[332833457,1721562328225,-500.0,0.00043835,60]
[332833458,1721562328257,-500.0,0.00043835,60]
[332833459,1721562328288,-500.0,0.00043835,60]
[332833460,1721562328320,-802.38,0.00043835,60]
[332833461,1721562328353,-500.0,0.00043835,60]
[332833462,1721562328385,-500.0,0.00043835,60]
[332833463,1721562328422,-500.0,0.00043835,60]
[332833464,1721562328455,-1262.18,0.00043835,60]
[332833465,1721562328490,-546.0,0.00043835,60]
[332833466,1721562328525,-1932.95,0.00043835,60]
[332833467,1721562328558,-500.0,0.00043835,60]
[332833468,1721562328592,-2812.15,0.00043835,60]
[332833469,1721562328628,-911.09,0.00043835,60]
[332833470,1721562328662,-500.0,0.00043835,60]
[332833471,1721562328698,-500.0,0.00043835,60]
[332833472,1721562328732,-4178.38,0.00043835,60]
[332833473,1721562328772,-1154.95,0.00043835,60]
[332833474,1721562328805,-500.0,0.00043835,60]
[332833475,1721562328839,-1112.6,0.00043835,60]
[332833476,1721562328873,-500.0,0.00043835,60]
[332833477,1721562328908,-1956.26,0.00043835,60]
[332833478,1721562328945,-4802.07,0.00043835,60]
[332833479,1721562328979,-500.0,0.00043835,60]
[332833480,1721562329016,-500.0,0.00043835,60]
[332833481,1721562329050,-501.13267473,0.00043835,60]
[332833482,1721562329082,-500.0,0.00043835,60]
[332833483,1721562329122,-929.78,0.00043835,60]
[332833484,1721562329157,-916.91,0.00043835,60]
[332833485,1721562329197,-2479.11,0.00043835,60]
[332833486,1721562329230,-500.0,0.00043835,60]
[332833487,1721562329262,-500.0,0.00043835,60]
[332833488,1721562329298,-500.0,0.00043835,60]
[332833489,1721562329335,-500.0,0.00043835,60]
[332833490,1721562329372,-500.0,0.00043835,60]
[332833491,1721562329407,-500.0,0.00043835,60]
[332833492,1721562329441,-1208.28,0.00043835,60]
[332833493,1721562329475,-1923.27,0.00043835,60]
[332833494,1721562329508,-694.37,0.00043835,60]
[332833495,1721562329546,-500.22339801,0.00043835,60]
[332833496,1721562329580,-10249.26,0.00043835,60]
[332833497,1721562329615,-500.0,0.00043835,60]
[332833498,1721562329651,-500.0,0.00043835,60]
[332833499,1721562329684,-1666.33,0.00043835,60]
[332833500,1721562329718,-500.0,0.00043835,60]
[332833501,1721562329752,-500.0,0.00043835,60]
[332833502,1721562329784,-500.0,0.00043835,60]
[332833503,1721562329817,-8515.16,0.00043835,60]
[332833504,1721562329848,-605.85,0.00043835,60]
[332833505,1721562329880,-500.0,0.00043835,60]
[332833506,1721562329914,-502.17658305,0.00043835,60]
[332833507,1721562329947,-500.0,0.00043835,60]
[332833508,1721562329980,-500.0,0.00043835,60]
[332833509,1721562330016,-500.0,0.00043835,60]
[332833510,1721562330050,-500.0,0.00043835,60]
[332833511,1721562330086,-1000.0,0.00043835,60]
[332833512,1721562330119,-1044.79,0.00043835,60]
[332833513,1721562330153,-500.0,0.00043835,60]
[332833514,1721562330188,-500.0,0.00043835,60]
[332833515,1721562330222,-1993.49,0.00043835,60]
[332833516,1721562330255,-2607.43,0.00043835,60]
[332833517,1721562330289,-500.0,0.00043835,60]
[332833518,1721562330323,-2442.5,0.00043835,60]
[332833519,1721562330358,-500.0,0.00043835,60]
[332833520,1721562330392,-2465.29,0.00043835,60]
[332833521,1721562330424,-1156.27,0.00043835,60]
[332833522,1721562330457,-1651.31,0.00043835,60]
[332833523,1721562330489,-857.7,0.00043835,60]
[332833524,1721562330522,-614.69,0.00043835,60]
[332833525,1721562330556,-503.51110411,0.00043835,60]
[332833526,1721562330589,-500.0,0.00043835,60]
[332833527,1721562330626,-500.0,0.00043835,60]
[332833528,1721562330660,-964.54,0.00043835,60]
[332833529,1721562330695,-500.0,0.00043835,60]
[332833530,1721562330730,-500.0,0.00043835,60]
[332833531,1721562330763,-500.0,0.00043835,60]
[332833532,1721562330794,-500.0,0.00043835,60]
[332833533,1721562330826,-500.0,0.00043835,60]
[332833534,1721562330858,-500.0,0.00043835,60]
[332833535,1721562330896,-1410.41,0.00043835,60]
[332833536,1721562330932,-500.0,0.00043835,60]
[332833537,1721562330966,-500.0,0.00043835,60]
[332833538,1721562331001,-500.0,0.00043835,60]
[332833539,1721562331036,-554.12205759,0.00043835,60]
[332833540,1721562331087,-500.0,0.00043835,60]
[332833541,1721562331125,-1976.74,0.00043835,60]
[332833542,1721562331162,-3782.82,0.00043835,60]
[332833543,1721562331196,-500.0,0.00043835,60]
[332833544,1721562331230,-2803.31,0.00043835,60]
[332833545,1721562331263,-500.0,0.00043835,60]
[332833546,1721562331298,-500.0,0.00043835,60]
[332833547,1721562331333,-500.0,0.00043835,60]
[332833548,1721562331368,-1210.42,0.00043835,60]
[332833549,1721562331403,-500.0,0.00043835,60]
[332833550,1721562331437,-1298.71,0.00043835,60]
[332833551,1721562331470,-1397.0,0.00043835,60]
[332833552,1721562331698,-2870.38,0.00043835,60]
[332833553,1721562331732,-1090.78,0.00043835,60]
[332833554,1721562331764,-500.0,0.00043835,60]
[332833555,1721562331796,-503.83591763,0.00043835,60]
[332833556,1721562331829,-500.0,0.00043835,60]
[332833557,1721562331862,-2472.79,0.00043835,60]
[332833558,1721562331896,-500.0,0.00043835,60]
[332833559,1721562331930,-975.35,0.00043835,60]
[332833560,1721562331963,-975.06,0.00043835,60]
[332833561,1721562331998,-4998.82,0.00043835,60]
[332833562,1721562332034,-500.0,0.00043835,60]
[332833563,1721562332067,-588.03,0.00043835,60]
[332833564,1721562332101,-3219.97,0.00043835,60]
[332833565,1721562332134,-500.0,0.00043835,60]
[332833566,1721562332166,-500.0,0.00043835,60]
[332833567,1721562332202,-1233.64,0.00043835,60]
[332833568,1721562332237,-500.0,0.00043835,60]
[332833569,1721562332270,-156.8891,0.00043888,30]
[332833570,1721562332302,-2149.36803,0.000439,30]
[332833571,1721562332334,-151.0,0.00043945,120]
[332833572,1721562332372,-50000.0,0.00044,44]
[332833573,1721562332407,-50000.0,0.00044,34]
[332833574,1721562332440,-289.46994608,0.00044,120]
[332833575,1721562332475,-2000.0,0.00044,120]
[332833576,1721562332512,-60659.26341255,0.00044,30]
[332833577,1721562332547,-1496.41,0.00044,120]
[332833578,1721562332582,-1000000.0,0.00044,90]
[332833579,1721562332615,-571.199447,0.00044,30]
[332833580,1721562332649,-150.0,0.00044,120]
[332833581,1721562332684,-637.965071,0.00044,57]
[332833582,1721562332716,-151.0,0.00044027,120]
[332833583,1721562332747,-2422.14203,0.00044088,30]
[332833584,1721562332778,-410.26027925,0.00044109,60]
[332833585,1721562332810,-500.0,0.00044109,60]
[332833586,1721562332842,-500.0,0.00044109,60]
[332833587,1721562332874,-728.0,0.00044109,60]
[332833588,1721562332908,-500.0,0.00044109,60]
[332833589,1721562332941,-3000.0,0.00044109,120]
[332833590,1721562332975,-500.0,0.00044109,60]
[332833591,1721562333011,-580.16939158,0.00044109,60]
[332833592,1721562333043,-500.0,0.00044109,60]
[332833593,1721562333077,-500.0,0.00044109,60]
[332833594,1721562333110,-500.0,0.00044109,60]
[332833595,1721562333144,-500.0,0.00044109,60]
[332833596,1721562333176,-500.0,0.00044109,60]
[332833597,1721562333208,-500.0,0.00044109,60]
[332833598,1721562333241,-500.0,0.00044109,60]
[332833599,1721562333274,-500.0,0.00044109,60]
[332833600,1721562333306,-500.0,0.00044109,60]
[332833601,1721562333338,-500.0,0.00044109,60]
[332833602,1721562333370,-502.04660808,0.00044109,60]
[332833603,1721562333406,-502.75978228,0.00044109,60]
[332833604,1721562333439,-500.0,0.00044109,60]
[332833605,1721562333471,-500.0,0.00044109,60]
[332833606,1721562333504,-500.0,0.00044109,60]
[332833607,1721562333536,-222.9417324,0.00044109,60]
[332833608,1721562333568,-500.0,0.00044109,60]
[332833609,1721562333601,-500.0,0.00044109,60]
[332833610,1721562333634,-500.0,0.00044109,60]
[332833611,1721562333668,-500.0,0.00044109,60]
[332833612,1721562333701,-500.0,0.00044109,60]
[332833613,1721562333732,-500.0,0.00044109,60]
[332833614,1721562333764,-273.42952981,0.00044109,60]
[332833615,1721562333796,-501.69335897,0.00044109,60]
[332833616,1721562333828,-500.0,0.00044109,60]
[332833617,1721562333859,-500.0,0.00044109,60]
[332833618,1721562333893,-500.0,0.00044109,60]
[332833619,1721562333931,-500.0,0.00044109,60]
[332833620,1721562333969,-500.0,0.00044109,60]
[332833621,1721562334004,-500.0,0.00044109,60]
[332833622,1721562334041,-500.0,0.00044109,60]
[332833623,1721562334078,-500.0,0.00044109,60]
[332833624,1721562334112,-500.0,0.00044109,60]
[332833625,1721562334148,-500.0,0.00044109,60]
[332833626,1721562334182,-505.93,0.00044109,60]
[332833627,1721562334216,-500.0,0.00044109,60]
[332833628,1721562334251,-500.0,0.00044109,60]
[332833629,1721562334284,-500.0,0.00044109,60]
[332833630,1721562334318,-500.0,0.00044109,60]
[332833631,1721562334351,-500.0,0.00044109,60]
[332833632,1721562334382,-500.0,0.00044109,60]
[332833633,1721562334415,-500.0,0.00044109,60]
[332833634,1721562334448,-500.0,0.00044109,60]
[332833635,1721562334482,-500.0,0.00044109,60]
[332833636,1721562334516,-500.0,0.00044109,60]
[332833637,1721562334549,-500.0,0.00044109,60]
[332833638,1721562334582,-500.0,0.00044109,60]
[332833639,1721562334616,-500.0,0.00044109,60]
[332833640,1721562334649,-500.0,0.00044109,60]
[332833641,1721562334682,-500.0,0.00044109,60]
[332833642,1721562334716,-500.0,0.00044109,60]
[332833643,1721562334748,-500.0,0.00044109,60]
[332833644,1721562334780,-643.98,0.00044109,60]
[332833645,1721562334813,-805.65,0.00044109,60]
[332833646,1721562334847,-526.28,0.00044109,60]
[332833647,1721562334881,-502.93080799,0.00044109,60]
[332833648,1721562334917,-500.0,0.00044109,60]
[332833649,1721562334956,-500.0,0.00044109,60]
[332833650,1721562334991,-502.98141206,0.00044109,60]
[332833651,1721562335026,-501.45700805,0.00044109,60]
[332833652,1721562335061,-769.84,0.00044109,60]
[332833653,1721562335094,-500.0,0.00044109,60]
[332833654,1721562335127,-503.06280524,0.00044109,60]
[332833655,1721562335160,-1257.88,0.00044109,60]
[332833656,1721562335391,-500.0,0.00044109,60]
[332833657,1721562335425,-1287.38,0.00044109,60]
[332833658,1721562335458,-594.32,0.00044109,60]
[332833659,1721562335491,-1299.73,0.00044109,60]
[332833660,1721562335523,-500.0,0.00044109,60]
[332833661,1721562335556,-500.0,0.00044109,60]
[332833662,1721562335591,-500.0,0.00044109,60]
[332833663,1721562335625,-500.0,0.00044109,60]
[332833664,1721562335658,-856.58,0.00044109,60]
[332833665,1721562335690,-500.0,0.00044109,60]
[332833666,1721562335721,-500.0,0.00044109,60]
[332833667,1721562335753,-500.0,0.00044109,60]
[332833668,1721562335784,-500.0,0.00044109,60]
[332833669,1721562335822,-500.0,0.00044109,60]
[332833670,1721562335856,-1115.47,0.00044109,60]
[332833671,1721562335888,-500.0,0.00044109,60]
[332833672,1721562335922,-500.0,0.00044109,60]
[332833673,1721562335955,-500.0,0.00044109,60]
[332833674,1721562335989,-500.0,0.00044109,60]
[332833675,1721562336021,-500.0,0.00044109,60]
[332833676,1721562336053,-500.0,0.00044109,60]
[332833677,1721562336089,-500.0,0.00044109,60]
[332833678,1721562336123,-500.0,0.00044109,60]
[332833679,1721562336157,-500.0,0.00044109,60]
[332833680,1721562336190,-872.12,0.00044109,60]
[332833681,1721562336226,-500.0,0.00044109,60]
[332833682,1721562336262,-500.0,0.00044109,60]
[332833683,1721562336294,-500.0,0.00044109,60]
[332833684,1721562336329,-500.0,0.00044109,60]
[332833685,1721562336362,-500.0,0.00044109,60]
[332833686,1721562336395,-783.24,0.00044109,60]
[332833687,1721562336429,-500.0,0.00044109,60]
[332833688,1721562336464,-500.0,0.00044109,60]
[332833689,1721562336496,-224.34034775,0.00044109,60]
[332833690,1721562336529,-777.21,0.00044109,60]
[332833691,1721562336560,-500.0,0.00044109,60]
[332833692,1721562336592,-500.0,0.00044109,60]
[332833693,1721562336623,-500.0,0.00044109,60]
[332833694,1721562336657,-958.16,0.00044109,60]
[332833695,1721562336691,-500.0,0.00044109,60]
[332833696,1721562336725,-500.0,0.00044109,60]
[332833697,1721562336759,-500.0,0.00044109,60]
[332833698,1721562336791,-500.0,0.00044109,60]
[332833699,1721562336823,-500.0,0.00044109,60]
[332833700,1721562336856,-500.0,0.00044109,60]
[332833701,1721562336889,-500.0,0.00044109,60]
[332833702,1721562336925,-500.0,0.00044109,60]
[332833703,1721562336958,-500.0,0.00044109,60]
[332833704,1721562336990,-500.0,0.00044109,60]
[332833705,1721562337023,-571.14,0.00044109,60]
[332833706,1721562337056,-500.0,0.00044109,60]
[332833707,1721562337091,-500.0,0.00044109,60]
[332833708,1721562337123,-500.0,0.00044109,60]
[332833709,1721562337156,-567.42,0.00044109,60]
[332833710,1721562337189,-500.0,0.00044109,60]
[332833711,1721562337223,-1623.56,0.00044109,60]
[332833712,1721562337255,-500.0,0.00044109,60]
[332833713,1721562337288,-500.0,0.00044109,60]
[332833714,1721562337321,-500.0,0.00044109,60]
[332833715,1721562337354,-500.0,0.00044109,60]
[332833716,1721562337388,-500.0,0.00044109,60]
[332833717,1721562337421,-500.0,0.00044109,60]
[332833718,1721562337456,-500.0,0.00044109,60]
[332833719,1721562337489,-500.0,0.00044109,60]
[332833720,1721562337522,-500.0,0.00044109,60]
[332833721,1721562337556,-500.0,0.00044109,60]
[332833722,1721562337590,-743.87,0.00044109,60]
[332833723,1721562337622,-500.0,0.00044109,60]
[332833724,1721562337656,-1419.75,0.00044109,60]
[332833725,1721562337689,-500.0,0.00044109,60]
[332833726,1721562337725,-500.0,0.00044109,60]
[332833727,1721562337760,-500.0,0.00044109,60]
[332833728,1721562337793,-500.0,0.00044109,60]
[332833729,1721562337824,-500.0,0.00044109,60]
[332833730,1721562337855,-500.0,0.00044109,60]
[332833731,1721562337887,-500.0,0.00044109,60]
[332833732,1721562337923,-700.4,0.00044109,60]
[332833733,1721562337960,-500.0,0.00044109,60]
[332833734,1721562337994,-500.0,0.00044109,60]
[332833735,1721562338031,-500.0,0.00044109,60]
[332833736,1721562338066,-500.0,0.00044109,60]
[332833737,1721562338100,-500.0,0.00044109,60]
[332833738,1721562338135,-500.0,0.00044109,60]
[332833739,1721562338170,-500.0,0.00044109,60]
[332833740,1721562338202,-500.0,0.00044109,60]
[332833741,1721562338234,-500.0,0.00044109,60]
[332833742,1721562338267,-500.0,0.00044109,60]
[332833743,1721562338299,-500.0,0.00044109,60]
[332833744,1721562338330,-500.0,0.00044109,60]
[332833745,1721562338363,-500.0,0.00044109,60]
[332833746,1721562338394,-500.0,0.00044109,60]
[332833747,1721562338426,-500.0,0.00044109,60]
[332833748,1721562338459,-500.0,0.00044109,60]
[332833749,1721562338491,-500.0,0.00044109,60]
[332833750,1721562338525,-500.0,0.00044109,60]
[332833751,1721562338563,-502.08666865,0.00044109,60]
[332833752,1721562338594,-500.35,0.00044109,60]
[332833753,1721562338626,-500.0,0.00044109,60]
[332833754,1721562338656,-500.0,0.00044109,60]
[332833755,1721562338688,-568.91,0.00044109,60]
[332833756,1721562338720,-500.0,0.00044109,60]
[332833757,1721562338756,-500.0,0.00044109,60]
[332833758,1721562338788,-500.0,0.00044109,60]
[332833759,1721562338819,-500.0,0.00044109,60]
[332833760,1721562339047,-500.0,0.00044109,60]
[332833761,1721562339084,-500.0,0.00044109,60]
[332833762,1721562339118,-500.0,0.00044109,60]
[332833763,1721562339154,-500.0,0.00044109,60]
[332833764,1721562339187,-505.83118398,0.00044109,60]
[332833765,1721562339221,-500.0,0.00044109,60]
[332833766,1721562339254,-500.0,0.00044109,60]
[332833767,1721562339293,-500.0,0.00044109,60]
[332833768,1721562339330,-500.0,0.00044109,60]
[332833769,1721562339362,-500.0,0.00044109,60]
[332833770,1721562339395,-500.0,0.00044109,60]
[332833771,1721562339428,-500.0,0.00044109,60]
[332833772,1721562339462,-500.0,0.00044109,60]
[332833773,1721562339495,-1031.62,0.00044109,60]
[332833774,1721562339527,-500.0,0.00044109,60]
[332833775,1721562339559,-500.0,0.00044109,60]
[332833776,1721562339591,-500.0,0.00044109,60]
[332833777,1721562339623,-500.0,0.00044109,60]
[332833778,1721562339656,-228.67941187,0.00044109,60]
[332833779,1721562339692,-500.0,0.00044109,60]
[332833780,1721562339728,-500.0,0.00044109,60]
[332833781,1721562339763,-500.0,0.00044109,60]
[332833782,1721562339799,-500.0,0.00044109,60]
[332833783,1721562339837,-500.0,0.00044109,60]
[332833784,1721562339873,-500.0,0.00044109,60]
[332833785,1721562339908,-500.0,0.00044109,60]
[332833786,1721562339943,-2195.5,0.00044109,60]
[332833787,1721562339978,-500.0,0.00044109,60]
[332833788,1721562340014,-547.14,0.00044109,60]
[332833789,1721562340048,-500.0,0.00044109,60]
[332833790,1721562340084,-500.0,0.00044109,60]
[332833791,1721562340119,-500.0,0.00044109,60]
[332833792,1721562340158,-500.0,0.00044109,60]
[332833793,1721562340193,-556.08,0.00044109,60]
[332833794,1721562340227,-628.69,0.00044109,60]
[332833795,1721562340261,-500.0,0.00044109,60]
[332833796,1721562340296,-500.0,0.00044109,60]
[332833797,1721562340333,-500.0,0.00044109,60]
[332833798,1721562340369,-500.0,0.00044109,60]
[332833799,1721562340403,-500.0,0.00044109,60]
[332833800,1721562340437,-500.0,0.00044109,60]
[332833801,1721562340470,-500.0,0.00044109,60]
[332833802,1721562340505,-500.0,0.00044109,60]
[332833803,1721562340539,-500.0,0.00044109,60]
[332833804,1721562340573,-2000.0,0.00044109,60]
[332833805,1721562340608,-1135.87,0.00044109,60]
[332833806,1721562340644,-500.0,0.00044109,60]
[332833807,1721562340680,-500.0,0.00044109,60]
[332833808,1721562340717,-500.0,0.00044109,60]
[332833809,1721562340751,-500.0,0.00044109,60]
[332833810,1721562340785,-500.0,0.00044109,60]
[332833811,1721562340820,-500.0,0.00044109,60]
[332833812,1721562340854,-500.0,0.00044109,60]
[332833813,1721562340892,-500.0,0.00044109,60]
[332833814,1721562340926,-500.0,0.00044109,60]
[332833815,1721562340962,-500.0,0.00044109,60]
[332833816,1721562340997,-1049.68,0.00044109,60]
[332833817,1721562341034,-500.0,0.00044109,60]
[332833818,1721562341068,-500.0,0.00044109,60]
[332833819,1721562341103,-500.0,0.00044109,60]
[332833820,1721562341136,-681.26,0.00044109,60]
[332833821,1721562341169,-502.70328282,0.00044109,60]
[332833822,1721562341202,-847.55,0.00044109,60]
[332833823,1721562341235,-500.0,0.00044109,60]
[332833824,1721562341268,-521.81,0.00044109,60]
[332833825,1721562341301,-500.0,0.00044109,60]
[332833826,1721562341336,-502.55407747,0.00044109,60]
[332833827,1721562341370,-500.0,0.00044109,60]
[332833828,1721562341404,-500.0,0.00044109,60]
[332833829,1721562341436,-500.0,0.00044109,60]
[332833830,1721562341471,-500.0,0.00044109,60]
[332833831,1721562341504,-500.0,0.00044109,60]
[332833832,1721562341538,-500.0,0.00044109,60]
[332833833,1721562341572,-500.0,0.00044109,60]
[332833834,1721562341607,-500.0,0.00044109,60]
[332833835,1721562341640,-500.0,0.00044109,60]
[332833836,1721562341673,-500.0,0.00044109,60]
[332833837,1721562341708,-500.0,0.00044109,60]
[332833838,1721562341743,-500.0,0.00044109,60]
[332833839,1721562341776,-500.0,0.00044109,60]
[332833840,1721562341810,-500.0,0.00044109,60]
[332833841,1721562341847,-808.07,0.00044109,60]
[332833842,1721562341880,-500.0,0.00044109,60]
[332833843,1721562341915,-502.07689871,0.00044109,60]
[332833844,1721562341949,-500.0,0.00044109,60]
[332833845,1721562341983,-449.32489823,0.00044109,60]
[332833846,1721562342018,-500.0,0.00044109,60]
[332833847,1721562342051,-500.0,0.00044109,60]
[332833848,1721562342087,-500.0,0.00044109,60]
[332833849,1721562342122,-500.0,0.00044109,60]
[332833850,1721562342158,-500.0,0.00044109,60]
[332833851,1721562342191,-500.0,0.00044109,60]
[332833852,1721562342226,-500.0,0.00044109,60]
[332833853,1721562342258,-500.0,0.00044109,60]
[332833854,1721562342291,-500.0,0.00044109,60]
[332833855,1721562342324,-596.0,0.00044109,60]
[332833856,1721562342361,-510.68,0.00044109,60]
[332833857,1721562342394,-794.01,0.00044109,60]
[332833858,1721562342432,-1165.35,0.00044109,60]
[332833859,1721562342466,-500.0,0.00044109,60]
[332833860,1721562342499,-500.0,0.00044109,60]
[332833861,1721562342533,-584.81,0.00044109,60]
[332833862,1721562342566,-500.0,0.00044109,60]
[332833863,1721562342793,-500.0,0.00044109,60]